lending/lending_fUSD_20241120
["ID","MTS","AMOUNT","RATE_DAILY","PERIOD"]
[342813516,1732143219157,-1926.82,0.00060547,120]
[342813517,1732143219167,-513.97,0.00060547,120]
[342813518,1732143219176,-1258.94,0.00060547,120]
[342813519,1732143219186,-615.91,0.00060547,120]
[342813520,1732143219197,-500.0,0.00060547,120]
[342813521,1732143219206,-739.53,0.00060547,120]
[342813522,1732143219216,-703.85,0.00060547,120]
[342813523,1732143219226,-2364.09,0.00060547,120]
[342813524,1732143219237,-1516.8,0.00060547,120]
[342813525,1732143219246,-500.0,0.00060547,120]
[342813526,1732143219258,-500.0,0.00060547,120]
[342813527,1732143219268,-1222.69,0.00060547,120]
[342813528,1732143219278,-644.03,0.00060547,120]
[342813529,1732143219287,-628.65,0.00060547,120]
[342813530,1732143219297,-689.07,0.00060547,120]
[342813531,1732143219306,-598.66,0.00060547,120]
[342813532,1732143219317,-500.0,0.00060547,120]
[342813533,1732143219327,-500.0,0.00060547,120]
[342813534,1732143219336,-696.8,0.00060547,120]
[342813535,1732143219346,-517.71,0.00060547,120]
[342813536,1732143219356,-670.6,0.00060547,120]
[342813537,1732143219365,-1622.41,0.00060547,120]
[342813538,1732143219375,-732.47,0.00060547,120]
[342813539,1732143219386,-799.65,0.00060547,120]
[342813540,1732143219396,-500.0,0.00060547,120]
[342813541,1732143219405,-500.0,0.00060547,120]
[342813542,1732143219416,-3752.95,0.00060547,120]
[342813543,1732143219426,-694.86,0.00060547,120]
[342813544,1732143219436,-527.72,0.00060547,120]
[342813545,1732143219445,-500.0,0.00060547,120]
[342813546,1732143219456,-2754.45,0.00060547,120]
[342813547,1732143219466,-821.37,0.00060547,120]
[342813548,1732143219475,-777.0,0.00060547,120]
[342813549,1732143219486,-1552.42,0.00060547,120]
[342813550,1732143219496,-750.37,0.00060547,120]
[342813551,1732143219507,-586.88,0.00060547,120]
[342813552,1732143219517,-546.79,0.00060547,120]
[342813553,1732143219526,-1410.35,0.00060547,120]
[342813554,1732143219535,-500.0,0.00060547,120]
[342813555,1732143219544,-622.81,0.00060547,120]
[342813556,1732143219553,-1270.46,0.00060547,120]
[342813557,1732143219563,-1078.42,0.00060547,120]
[342813558,1732143219573,-2348.91,0.00060547,120]
[342813559,1732143219583,-1803.88,0.00060547,120]
[342813560,1732143219592,-875.42,0.00060547,120]
[342813561,1732143219602,-908.45,0.00060547,120]
[342813562,1732143219612,-500.0,0.00060547,120]
[342813563,1732143219622,-643.69,0.00060547,120]
[342813564,1732143219632,-1745.98,0.00060547,120]
[342813565,1732143219642,-500.0,0.00060547,120]
[342813566,1732143219653,-659.6,0.00060547,120]
[342813567,1732143219664,-1212.54,0.00060547,120]
[342813568,1732143219674,-500.0,0.00060547,120]
[342813569,1732143219684,-500.0,0.00060547,120]
[342813570,1732143219694,-2042.25,0.00060547,120]
[342813571,1732143219705,-828.06,0.00060547,120]
[342813572,1732143219716,-646.63,0.00060547,120]
[342813573,1732143219727,-806.31,0.00060547,120]
[342813574,1732143219737,-1287.88,0.00060547,120]
[342813575,1732143219748,-1410.77,0.00060547,120]
[342813576,1732143219760,-1026.3,0.00060547,120]
[342813577,1732143219769,-623.91,0.00060547,120]
[342813578,1732143219781,-654.97,0.00060547,120]
[342813579,1732143219791,-766.21,0.00060547,120]
[342813580,1732143219802,-1162.69,0.00060547,120]
[342813581,1732143219813,-1000.52,0.00060547,120]
[342813582,1732143219823,-1013.49,0.00060547,120]
[342813583,1732143219834,-811.56,0.00060547,120]
[342813584,1732143219845,-1475.7,0.00060547,120]
[342813585,1732143219855,-3361.2,0.00060547,120]
[342813586,1732143219866,-633.81,0.00060547,120]
[342813587,1732143219876,-1185.33,0.00060547,120]
[342813588,1732143219887,-500.0,0.00060547,120]
[342813589,1732143219898,-838.48,0.00060547,120]
[342813590,1732143219909,-1382.6,0.00060547,120]
[342813591,1732143219919,-534.81,0.00060547,120]
[342813592,1732143219932,-500.0,0.00060547,120]
[342813593,1732143219943,-500.0,0.00060547,120]
[342813594,1732143219954,-2198.56,0.00060547,120]
[342813595,1732143219965,-500.0,0.00060547,120]
[342813596,1732143219976,-500.0,0.00060547,120]
[342813597,1732143219987,-658.16,0.00060547,120]
[342813598,1732143219998,-581.06,0.00060547,120]
[342813599,1732143220013,-843.03,0.00060547,120]
[342813600,1732143220023,-536.1,0.00060547,120]
[342813601,1732143220034,-1309.27,0.00060547,120]
[342813602,1732143220045,-665.72,0.00060547,120]
[342813603,1732143220056,-789.82,0.00060547,120]
[342813604,1732143220067,-660.24,0.00060547,120]
[342813605,1732143220078,-504.35,0.00060547,120]
[342813606,1732143220088,-2411.2,0.00060547,120]
[342813607,1732143220098,-773.4,0.00060547,120]
[342813608,1732143220109,-3997.56,0.00060547,120]
[342813609,1732143220120,-556.25,0.00060547,120]
[342813610,1732143220131,-559.66,0.00060547,120]
[342813611,1732143220143,-1755.1,0.00060547,120]
[342813612,1732143220154,-1021.42,0.00060547,120]
[342813613,1732143220164,-968.59,0.00060547,120]
[342813614,1732143220175,-500.0,0.00060547,120]
[342813615,1732143220186,-747.74,0.00060547,120]
[342813616,1732143220197,-650.26,0.00060547,120]
[342813617,1732143220208,-552.66,0.00060547,120]
[342813618,1732143220219,-500.0,0.00060547,120]
[342813619,1732143220230,-528.53,0.00060547,120]
[342813620,1732143220241,-661.12,0.00060547,120]
[342813621,1732143220254,-4504.33,0.00060547,120]
[342813622,1732143220265,-1414.7,0.00060547,120]
[342813623,1732143220276,-500.0,0.00060547,120]
[342813624,1732143220287,-500.0,0.00060547,120]
[342813625,1732143220298,-1839.1,0.00060547,20]
[342813626,1732143220308,-500.0,0.00060547,120]
[342813627,1732143220317,-600.15,0.00060547,120]
[342813628,1732143220327,-639.71,0.00060547,120]
[342813629,1732143220337,-1229.98,0.00060547,120]
[342813630,1732143220348,-500.0,0.00060547,120]
[342813631,1732143220358,-500.0,0.00060547,120]
[342813632,1732143220369,-643.92,0.00060547,120]
[342813633,1732143220380,-1685.02,0.00060547,120]
[342813634,1732143220390,-503.41,0.00060547,120]
[342813635,1732143220401,-1838.85,0.00060547,120]
[342813636,1732143220412,-777.36,0.00060547,120]
[342813637,1732143220422,-500.0,0.00060547,120]
[342813638,1732143220432,-1088.52,0.00060547,120]
[342813639,1732143220443,-3963.88,0.00060547,120]
[342813640,1732143220453,-500.0,0.00060547,120]
[342813641,1732143220464,-508.93,0.00060547,120]
[342813642,1732143220475,-500.0,0.00060547,120]
[342813643,1732143220485,-522.18,0.00060547,120]
[342813644,1732143220495,-674.72,0.00060547,120]
[342813645,1732143220507,-1573.1,0.00060547,120]
[342813646,1732143220518,-500.0,0.00060547,120]
[342813647,1732143220528,-1344.45,0.00060547,120]
[342813648,1732143220539,-695.34,0.00060547,120]
[342813649,1732143220549,-5030.76,0.00060547,120]
[342813650,1732143220560,-993.23,0.00060547,120]
[342813651,1732143220570,-530.39,0.00060547,120]
[342813652,1732143220581,-1007.71,0.00060547,120]
[342813653,1732143220591,-1508.05,0.00060547,120]
[342813654,1732143220603,-500.0,0.00060547,120]
[342813655,1732143220613,-845.57,0.00060547,120]
[342813656,1732143220623,-500.0,0.00060547,120]
[342813657,1732143220633,-635.4,0.00060547,120]
[342813658,1732143220643,-872.55,0.00060547,120]
[342813659,1732143220653,-3671.8,0.00060547,120]
[342813660,1732143220664,-1949.27,0.00060547,120]
[342813661,1732143220674,-1275.78,0.00060547,120]
[342813662,1732143220684,-1300.6,0.00060547,120]
[342813663,1732143220694,-873.15,0.00060547,120]
[342813664,1732143220705,-656.67,0.00060547,120]
[342813665,1732143220714,-1078.43,0.00060547,120]
[342813666,1732143220724,-729.83,0.00060547,120]
[342813667,1732143220734,-1015.57,0.00060547,120]
[342813668,1732143220745,-562.04,0.00060547,120]
[342813669,1732143220755,-2222.66,0.00060547,120]
[342813670,1732143220765,-1080.64,0.00060547,120]
[342813671,1732143220782,-2596.1,0.00060547,120]
[342813672,1732143220802,-852.14,0.00060547,120]
[342813673,1732143220819,-569.32,0.00060547,120]
[342813674,1732143220838,-999.09,0.00060547,120]
[342813675,1732143220855,-509.24,0.00060547,120]
[342813676,1732143220871,-928.5,0.00060547,120]
[342813677,1732143220891,-1806.6,0.00060547,120]
[342813678,1732143220910,-1129.79,0.00060547,120]
[342813679,1732143220932,-386.96,0.00060547,120]
[342813680,1732143220950,-2425.19,0.00060547,120]
[342813681,1732143220972,-569.99,0.00060547,120]
[342813682,1732143220987,-625.0,0.00060547,120]
[342813683,1732143221007,-1018.93,0.00060547,120]
[342813684,1732143221019,-2073.72,0.00060547,120]
[342813685,1732143221038,-1011.93,0.00060547,120]
[342813686,1732143221051,-1257.41,0.00060547,120]
[342813687,1732143221074,-1328.54,0.00060547,120]
[342813688,1732143221090,-893.2,0.00060547,120]
[342813689,1732143221107,-878.56,0.00060547,120]
[342813690,1732143221123,-1954.12,0.00060547,120]
[342813691,1732143221139,-1107.33,0.00060547,120]
[342813692,1732143221156,-5394.68,0.00060547,120]
[342813693,1732143221171,-709.28,0.00060547,120]
[342813694,1732143221188,-965.73,0.00060547,120]
[342813695,1732143221204,-543.1,0.00060547,120]
[342813696,1732143221220,-1317.76,0.00060547,120]
[342813697,1732143221237,-594.46,0.00060547,120]
[342813698,1732143221254,-1617.12,0.00060547,120]
[342813699,1732143221270,-569.41,0.00060547,120]
[342813700,1732143221285,-657.08,0.00060547,120]
[342813701,1732143221302,-628.07,0.00060547,120]
[342813702,1732143221317,-4865.56,0.00060547,120]
[342813703,1732143221333,-1510.86,0.00060547,120]
[342813704,1732143221349,-2529.98,0.00060547,120]
[342813705,1732143221364,-750.97,0.00060547,120]
[342813706,1732143221379,-635.24,0.00060547,120]
[342813707,1732143221395,-1489.09,0.00060547,120]
[342813708,1732143221412,-1761.11,0.00060547,120]
[342813709,1732143221427,-624.76,0.00060547,120]
[342813710,1732143221442,-46265.17,0.00060547,120]
[342813711,1732143221456,-500.0,0.00060547,120]
[342813712,1732143221472,-644.52,0.00060547,120]
[342813713,1732143221486,-880.93,0.00060547,120]
[342813714,1732143221504,-4390.12,0.00060547,120]
[342813715,1732143221520,-3641.91,0.00060547,120]
[342813716,1732143221536,-2046.77,0.00060547,120]
[342813717,1732143221551,-501.95423676,0.00060547,120]
[342813718,1732143221566,-519.31,0.00060547,120]
[342813719,1732143221581,-1582.94,0.00060547,120]
[342813720,1732143221596,-1566.08,0.00060547,120]
[342813721,1732143221611,-1540.18,0.00060547,120]
[342813722,1732143221627,-1118.01,0.00060547,120]
[342813723,1732143221644,-32182.96,0.00060547,120]
[342813724,1732143221661,-2395.44,0.00060547,120]
[342813725,1732143221676,-774.88,0.00060547,120]
[342813726,1732143221691,-500.0,0.00060547,120]
[342813727,1732143221707,-3018.97,0.00060547,120]
[342813728,1732143221722,-500.0,0.00060547,120]
[342813729,1732143221738,-1221.56,0.00060547,120]
[342813730,1732143221754,-949.33,0.00060547,120]
[342813731,1732143221772,-512.47,0.00060547,120]
[342813732,1732143221787,-975.73,0.00060547,120]
[342813733,1732143221803,-500.0,0.00060547,120]
[342813734,1732143221818,-1680.87,0.00060547,120]
[342813735,1732143221833,-2068.97,0.00060547,120]
[342813736,1732143221848,-509.92,0.00060547,120]
[342813737,1732143221862,-2386.08,0.00060547,120]
[342813738,1732143221879,-2587.78,0.00060547,120]
[342813739,1732143221896,-1481.97,0.00060547,120]
[342813740,1732143221912,-541.07218075,0.00060547,120]
[342813741,1732143221929,-1478.74,0.00060547,120]
[342813742,1732143221947,-500.0,0.00060547,120]
[342813743,1732143221961,-580.13,0.00060547,120]
[342813744,1732143221977,-816.51,0.00060547,120]
[342813745,1732143221992,-562.17,0.00060547,120]
[342813746,1732143222007,-1753.89,0.00060547,120]
[342813747,1732143222022,-10880.09,0.00060547,120]
[342813748,1732143222039,-2245.37,0.00060547,120]
[342813749,1732143222056,-3622.31,0.00060547,120]
[342813750,1732143222071,-502.6,0.00060547,120]
[342813751,1732143222087,-500.0,0.00060547,120]
[342813752,1732143222103,-1317.84,0.00060547,120]
[342813753,1732143222118,-1518.89,0.00060547,90]
[342813754,1732143222132,-1643.31,0.00060547,120]
[342813755,1732143222146,-1298.63,0.00060547,120]
[342813756,1732143222161,-943.47,0.00060547,120]
[342813757,1732143222176,-500.0,0.00060547,120]
[342813758,1732143222192,-1649.32,0.00060547,120]
[342813759,1732143222208,-550.87,0.00060547,120]
[342813760,1732143222223,-5640.48,0.00060547,120]
[342813761,1732143222239,-2158.9,0.00060547,120]
[342813762,1732143222254,-1165.26,0.00060547,120]
[342813763,1732143222269,-1244.51,0.00060547,120]
[342813764,1732143222283,-516.5,0.00060547,120]
[342813765,1732143222298,-1110.14,0.00060547,120]
[342813766,1732143222312,-9870.91,0.00060547,120]
[342813767,1732143222327,-986.78,0.00060547,120]
[342813768,1732143222342,-567.02,0.00060547,120]
[342813769,1732143222356,-651.9,0.00060547,120]
[342813770,1732143222371,-3368.96,0.00060547,120]
[342813771,1732143222387,-1042.13,0.00060547,120]
[342813772,1732143222401,-6243.58,0.00060547,120]
[342813773,1732143222416,-1021.75,0.00060547,120]
[342813774,1732143222431,-1221.81,0.00060547,120]
[342813775,1732143222445,-1378.96,0.00060547,120]
[342813776,1732143222460,-1402.48,0.00060547,120]
[342813777,1732143222475,-1098.99,0.00060547,7]
[342813778,1732143222489,-2324.89,0.00060547,120]
[342813779,1732143222505,-3357.52,0.00060547,120]
[342813780,1732143222519,-631.52,0.00060547,120]
[342813781,1732143222533,-1503.83,0.00060547,120]
[342813782,1732143222547,-500.0,0.00060547,120]
[342813783,1732143222561,-610.46,0.00060547,120]
[342813784,1732143222576,-676.3,0.00060547,120]
[342813785,1732143222592,-4485.14,0.00060547,120]
[342813786,1732143222607,-1449.22,0.00060547,120]
[342813787,1732143222624,-802.14,0.00060547,120]
[342813788,1732143222639,-1005.77,0.00060547,120]
[342813789,1732143222655,-62267.29,0.00060547,5]
[342813790,1732143222669,-733.47,0.00060547,120]
[342813791,1732143222685,-1000.0,0.00060547,120]
[342813792,1732143222701,-1200.11,0.00060547,120]
[342813793,1732143222715,-4633.73,0.00060547,120]
[342813794,1732143222729,-484.12109667,0.00060547,120]
[342813795,1732143222743,-1462.06,0.00060547,120]
[342813796,1732143222762,-1071.61,0.00060547,120]
[342813797,1732143222775,-1246.53,0.00060547,120]
[342813798,1732143222790,-665.76,0.00060547,120]
[342813799,1732143222804,-1619.4,0.00060547,120]
[342813800,1732143222818,-1033.25,0.00060547,120]
[342813801,1732143222832,-4155.63,0.00060547,120]
[342813802,1732143222846,-500.0,0.00060547,120]
[342813803,1732143222860,-534.16,0.00060547,120]
[342813804,1732143222876,-716.03,0.00060547,120]
[342813805,1732143222891,-710.7,0.00060547,120]
[342813806,1732143222905,-1328.15,0.00060547,120]
[342813807,1732143222918,-3842.23,0.00060547,120]
[342813808,1732143222935,-1770.4,0.00060547,120]
[342813809,1732143222949,-1828.16,0.00060547,120]
[342813810,1732143222964,-734.2,0.00060547,120]
[342813811,1732143222979,-4113.57,0.00060547,120]
[342813812,1732143222994,-3361.09,0.00060547,120]
[342813813,1732143223013,-2336.41,0.00060547,120]
[342813814,1732143223027,-914.26,0.00060547,120]
[342813815,1732143223041,-2227.59,0.00060547,120]
[342813816,1732143223055,-1225.66,0.00060547,120]
[342813817,1732143223069,-1793.12,0.00060547,120]
[342813818,1732143223083,-1199.34,0.00060547,120]
[342813819,1732143223099,-818.4,0.00060547,120]
[342813820,1732143223114,-945.67,0.00060547,120]
[342813821,1732143223129,-4656.57,0.00060547,120]
[342813822,1732143223144,-656.2,0.00060547,120]
[342813823,1732143223158,-1601.15,0.00060547,120]
[342813824,1732143223172,-2590.51,0.00060547,120]
[342813825,1732143223186,-1087.48,0.00060547,120]
[342813826,1732143223201,-617.4,0.00060547,120]
[342813827,1732143223215,-1021.22,0.00060547,120]
[342813828,1732143223228,-530.21,0.00060547,120]
[342813829,1732143223243,-861.7,0.00060547,120]
[342813830,1732143223261,-4078.12,0.00060547,120]
[342813831,1732143223275,-609.85,0.00060547,120]
[342813832,1732143223289,-630.13,0.00060547,120]
[342813833,1732143223303,-1271.08,0.00060547,120]
[342813834,1732143223319,-1053.42,0.00060547,120]
[342813835,1732143223332,-10737.37,0.00060547,21]
[342813836,1732143223347,-868.75,0.00060547,120]
[342813837,1732143223362,-3054.48,0.00060547,120]
[342813838,1732143223376,-772.0,0.00060547,120]
[342813839,1732143223391,-790.82,0.00060547,120]
[342813840,1732143223406,-1615.7,0.00060547,120]
[342813841,1732143223420,-576.17,0.00060547,120]
[342813842,1732143223433,-2780.77,0.00060547,120]
[342813843,1732143223447,-3170.06,0.00060547,120]
[342813844,1732143223461,-530.51,0.00060547,120]
[342813845,1732143223477,-814.28,0.00060547,120]
[342813846,1732143223491,-1053.94,0.00060547,120]
[342813847,1732143223507,-832.21,0.00060547,120]
[342813848,1732143223521,-559.12,0.00060547,120]
[342813849,1732143223536,-962.23,0.00060547,120]
[342813850,1732143223550,-4610.65,0.00060547,120]
[342813851,1732143223566,-630.95,0.00060547,120]
[342813852,1732143223580,-1497.99,0.00060547,120]
[342813853,1732143223594,-500.0,0.00060547,120]
[342813854,1732143223608,-3030.53,0.00060547,120]
[342813855,1732143223623,-2002.76,0.00060547,120]
[342813856,1732143223638,-4996.62,0.00060547,120]
[342813857,1732143223653,-1038.47,0.00060547,120]
[342813858,1732143223668,-7093.52,0.00060547,120]
[342813859,1732143223683,-3755.03,0.00060547,120]
[342813860,1732143223698,-500.33,0.00060547,120]
[342813861,1732143223714,-1395.84,0.00060547,120]
[342813862,1732143223727,-6717.87,0.00060547,120]
[342813863,1732143223742,-619.43,0.00060547,120]
[342813864,1732143223756,-4210.05,0.00060547,120]
[342813865,1732143223772,-500.0,0.00060547,120]
[342813866,1732143223786,-4619.32,0.00060547,120]
[342813867,1732143223801,-2125.56,0.00060547,120]
[342813868,1732143223816,-1522.48,0.00060547,120]
[342813869,1732143223830,-500.0,0.00060547,120]
[342813870,1732143223845,-2913.49,0.00060547,120]
[342813871,1732143223860,-654.65,0.00060547,120]
[342813872,1732143223874,-6408.58,0.00060547,60]
[342813873,1732143223889,-8536.13,0.00060547,120]
[342813874,1732143223904,-931.52,0.00060547,120]
[342813875,1732143224342,-5185.83,0.00060547,120]
[342813876,1732143224367,-873.24,0.00060547,120]
[342813877,1732143224376,-1838.8,0.00060547,120]
[342813878,1732143224386,-1525.45,0.00060547,120]
[342813879,1732143224396,-1373.0,0.00060547,120]
[342813880,1732143224407,-1659.86,0.00060547,120]
[342813881,1732143224417,-500.0,0.00060547,120]
[342813882,1732143224427,-5907.77,0.00060547,120]
[342813883,1732143224436,-647.02,0.00060547,120]
[342813884,1732143224445,-1210.69,0.00060547,120]
[342813885,1732143224454,-526.64,0.00060547,120]
[342813886,1732143224463,-12504.89,0.00060547,120]
[342813887,1732143224473,-2076.98,0.00060547,120]
[342813888,1732143224483,-1181.36,0.00060547,120]
[342813889,1732143224492,-677.21,0.00060547,120]
[342813890,1732143224502,-1109.03,0.00060547,120]
[342813891,1732143224511,-2434.04,0.00060547,120]
[342813892,1732143224520,-557.25,0.00060547,120]
[342813893,1732143224529,-1099.32,0.00060547,120]
[342813894,1732143224539,-651.95,0.00060547,120]
[342813895,1732143224548,-4681.73,0.00060547,120]
[342813896,1732143224557,-757.95,0.00060547,120]
[342813897,1732143224567,-986.66,0.00060547,120]
[342813898,1732143224577,-880.48,0.00060547,120]
[342813899,1732143224587,-1502.22,0.00060547,120]
[342813900,1732143224597,-1166.87,0.00060547,120]
[342813901,1732143224607,-500.0,0.00060547,120]
[342813902,1732143224615,-1450.31,0.00060547,120]
[342813903,1732143224625,-548.14,0.00060547,120]
[342813904,1732143224636,-2144.4,0.00060547,120]
[342813905,1732143224645,-14474.38,0.00060547,120]
[342813906,1732143224655,-16729.96,0.00060547,120]
[342813907,1732143224664,-1032.14,0.00060547,120]
[342813908,1732143224674,-500.0,0.00060547,120]
[342813909,1732143224685,-533.88,0.00060547,120]
[342813910,1732143224694,-2375.8,0.00060547,120]
[342813911,1732143224703,-726.78,0.00060547,120]
[342813912,1732143224713,-3517.73,0.00060547,120]
[342813913,1732143224723,-311.71428731,0.00060547,120]
[342813914,1732143224733,-2949.54,0.00060547,120]
[342813915,1732143224742,-680.36,0.00060547,120]
[342813916,1732143224751,-629.45,0.00060547,120]
[342813917,1732143224760,-1835.32,0.00060547,120]
[342813918,1732143224769,-567.38,0.00060547,120]
[342813919,1732143224779,-1270.02,0.00060547,120]
[342813920,1732143224790,-988.11,0.00060547,120]
[342813921,1732143224799,-1077.92,0.00060547,120]
[342813922,1732143224809,-1080.78,0.00060547,120]
[342813923,1732143224819,-730.91,0.00060547,120]
[342813924,1732143224829,-794.46,0.00060547,120]
[342813925,1732143224838,-836.47,0.00060547,120]
[342813926,1732143224848,-877.06,0.00060547,120]
[342813927,1732143224858,-1006.93,0.00060547,120]
[342813928,1732143224868,-873.31,0.00060547,120]
[342813929,1732143224877,-1076.47,0.00060547,120]
[342813930,1732143224888,-5067.66,0.00060547,120]
[342813931,1732143224897,-897.49,0.00060547,120]
[342813932,1732143224906,-615.04,0.00060547,120]
[342813933,1732143224915,-537.82,0.00060547,120]
[342813934,1732143224924,-1213.36,0.00060547,120]
[342813935,1732143224939,-911.56,0.00060547,120]
[342813936,1732143224949,-1001.49,0.00060547,120]
[342813937,1732143224959,-1621.15,0.00060547,120]
[342813938,1732143224969,-1004.9,0.00060547,120]
[342813939,1732143224978,-1363.03,0.00060547,120]
[342813940,1732143224987,-670.6,0.00060547,120]
[342813941,1732143224997,-500.0,0.00060547,120]
[342813942,1732143225009,-4519.72,0.00060547,120]
[342813943,1732143225020,-597.02,0.00060547,120]
[342813944,1732143225029,-681.14,0.00060547,120]
[342813945,1732143225040,-1529.3,0.00060547,120]
[342813946,1732143225049,-500.0,0.00060547,120]
[342813947,1732143225059,-5382.48,0.00060547,120]
[342813948,1732143225068,-2209.36,0.00060547,120]
[342813949,1732143225078,-640.41,0.00060547,120]
[342813950,1732143225087,-1045.28,0.00060547,120]
[342813951,1732143225097,-30000.0,0.00060547,60]
[342813952,1732143225107,-150.0,0.00060568,120]
[342813953,1732143225117,-5000.0,0.00060569,30]
[342813954,1732143225126,-5000.0,0.00060575,30]
[342813955,1732143225135,-5000.0,0.00060586,30]
[342813956,1732143225146,-150.0,0.0006059,120]
[342813957,1732143225155,-2823.03,0.00060592,30]
[342813958,1732143225165,-250.0,0.000606,30]
[342813959,1732143225174,-150.0,0.00060606,120]
[342813960,1732143225184,-674.72531698,0.00060613,120]
[342813961,1732143225194,-245.97244822,0.00060613,120]
[342813962,1732143225204,-300.08402069,0.00060613,120]
[342813963,1732143225213,-5000.0,0.0006062,30]
[342813964,1732143225222,-674.72531698,0.0006068,120]
[342813965,1732143225232,-245.97244822,0.0006068,120]
[342813966,1732143225241,-300.08402069,0.0006068,120]
[342813967,1732143225251,-980.09,0.00060682,30]
[342813968,1732143225262,-5000.0,0.00060692,30]
[342813969,1732143225271,-150.0,0.00060694,120]
[342813970,1732143225280,-5000.0,0.00060708,30]
[342813971,1732143225289,-674.72531698,0.00060747,120]
[342813972,1732143225299,-245.97244822,0.00060747,120]
[342813973,1732143225308,-300.08402069,0.00060747,120]
[342813974,1732143225317,-1827.05,0.00060748,30]
[342813975,1732143225327,-150.0,0.00060752,120]
[342813976,1732143225336,-5000.0,0.00060791,30]
[342813977,1732143225345,-597.23,0.000608,120]
[342813978,1732143225354,-1582.0,0.00060802,30]
[342813979,1732143225363,-674.72531698,0.00060815,120]
[342813980,1732143225373,-245.97244822,0.00060815,120]
[342813981,1732143225382,-300.08402069,0.00060815,120]
[342813982,1732143225391,-150.0,0.0006082,120]
[342813983,1732143225401,-597.23,0.00060821,120]
[342813984,1732143225409,-500.0,0.00060821,120]
[342813985,1732143225419,-500.0,0.00060821,120]
[342813986,1732143225428,-500.0,0.00060821,120]
[342813987,1732143225437,-500.0,0.00060821,120]
[342813988,1732143225447,-1252.22,0.00060821,120]
[342813989,1732143225456,-500.0,0.00060821,120]
[342813990,1732143225466,-500.0,0.00060821,120]
[342813991,1732143225476,-500.0,0.00060821,120]
[342813992,1732143225486,-576.02,0.00060821,120]
[342813993,1732143225495,-771.31,0.00060821,120]
[342813994,1732143225508,-500.0,0.00060821,120]
[342813995,1732143225517,-500.0,0.00060821,120]
[342813996,1732143225526,-500.0,0.00060821,120]
[342813997,1732143225535,-500.0,0.00060821,120]
[342813998,1732143225546,-500.0,0.00060821,120]
[342813999,1732143225556,-500.0,0.00060821,120]
[342814000,1732143225565,-554.38,0.00060821,120]
[342814001,1732143225574,-500.0,0.00060821,120]
[342814002,1732143225583,-601.61,0.00060821,120]
[342814003,1732143225593,-1158.3,0.00060821,120]
[342814004,1732143225602,-500.0,0.00060821,120]
[342814005,1732143225611,-500.0,0.00060821,120]
[342814006,1732143225620,-1261.01,0.00060821,120]
[342814007,1732143225629,-500.0,0.00060821,120]
[342814008,1732143225639,-598.93,0.00060821,120]
[342814009,1732143225648,-267.75126489,0.00060821,60]
[342814010,1732143225658,-500.0,0.00060821,120]
[342814011,1732143225668,-500.0,0.00060821,120]
[342814012,1732143225678,-1006.34,0.00060821,120]
[342814013,1732143225689,-500.0,0.00060821,120]
[342814014,1732143225699,-504.43,0.00060821,120]
[342814015,1732143225709,-500.0,0.00060821,120]